fUST/lending_fUST_20260116
["ID","MTS","AMOUNT","RATE_DAILY","PERIOD"]
[402113959,1768524647459,-1272720.15865898,0.0001995,2]
[402113960,1768524649833,-250.0,0.00019939,5]
[402113961,1768524649844,-250.0,0.00019939,5]
[402113962,1768524649853,-250.0,0.00019939,5]
[402113963,1768524649862,-250.0,0.00019939,5]
[402113964,1768524649872,-273.53456012,0.00019939,5]
[402113965,1768524649881,-5176.69488954,0.0001995,2]
[402114103,1768524994162,1724.74,0.00010958,19]
[402114104,1768524994212,1724.74,0.00010958,20]
[402114105,1768524994286,920.52,0.00010958,21]
[402114106,1768524994309,804.22,0.00010958,21]
[402114107,1768524994506,1724.74,0.00010958,21]
[402114108,1768524994729,1724.74,0.00010958,21]
[402114109,1768524994958,1724.74,0.00010958,21]
[402114111,1768524995177,1724.80291207,0.00010958,21]
[402114306,1768525551032,1221.69,0.00010958,20]
[402114350,1768525722703,155.0,1e-05,2]
[402114387,1768525832383,-220.14171271,0.00010956,2]
[402114389,1768525832393,-300.0,0.00010957,2]
[402114390,1768525832403,-300.0,0.00010957,2]
[402114392,1768525832412,-300.0,0.00010957,2]
[402114393,1768525832422,-300.0,0.00010957,2]
[402114394,1768525832431,-444.33464841,0.00010957,2]
[402114396,1768525832442,-755.66535159,0.00010957,2]
[402114398,1768525832452,-120.23369427,0.00010958,2]
[402114435,1768525839158,-1101.45630573,0.00010958,2]
[402114436,1768525839169,-1221.69,0.00010958,3]
[402114437,1768525839180,-1221.69,0.00010958,4]
[402114438,1768525839190,-1221.69,0.00010958,5]
[402114439,1768525839200,-1221.69,0.00010958,6]
[402114440,1768525839210,-1221.69,0.00010958,7]
[402114441,1768525839219,-1221.69,0.00010958,8]
[402114442,1768525839229,-1221.69,0.00010958,9]
[402114443,1768525839238,-1221.69,0.00010958,10]
[402114444,1768525839247,-1221.69,0.00010958,11]
[402114445,1768525839257,-1221.69,0.00010958,12]
[402114446,1768525839267,-1221.69,0.00010958,13]
[402114447,1768525839277,-1221.69,0.00010958,14]
[402114448,1768525839286,-1221.69,0.00010958,15]
[402114449,1768525839295,-1221.69,0.00010958,16]
[402114450,1768525839306,-1221.69,0.00010958,17]
[402114451,1768525839315,-1221.69,0.00010958,18]
[402114452,1768525839325,-1221.69,0.00010958,19]
[402114453,1768525839334,-173.75,0.00010962,2]
[402114454,1768525839344,-300.0,0.00011176,2]
[402114455,1768525839353,-300.0,0.00011176,2]
[402114456,1768525839363,-300.0,0.00011176,2]
[402114457,1768525839372,-300.0,0.00011176,2]
[402114458,1768525839381,-300.0,0.00011176,2]
[402114459,1768525839391,-300.0,0.00011176,2]
[402114460,1768525839401,-300.0,0.00011176,2]
[402114461,1768525839410,-300.0,0.00011176,2]
[402114462,1768525839420,-300.0,0.00011176,2]
[402114463,1768525839429,-300.0,0.00011176,2]
[402114464,1768525839439,-300.0,0.00011176,2]
[402114465,1768525839448,-300.0,0.00011176,2]
[402114466,1768525839457,-300.0,0.00011176,2]
[402114467,1768525839466,-300.0,0.00011176,2]
[402114468,1768525839476,-300.0,0.00011176,2]
[402114469,1768525839485,-205.84,0.00011176,2]
[402114470,1768525839494,-999.0,0.00011259,2]
[402114471,1768525839504,-198.57,0.00011368,2]
[402114472,1768525839513,-1221.69,0.00011395,21]
[402114473,1768525839522,-1221.69,0.00011395,21]
[402114474,1768525839531,-1221.69,0.00011395,21]
[402114475,1768525839540,-1221.69,0.00011395,21]
[402114476,1768525839549,-1221.71,0.00011395,21]
[402114477,1768525839558,-600.0,0.00011399,2]
[402114478,1768525839568,-223.4,0.00011774,2]
[402114479,1768525839577,-420.0,0.00012041,2]
[402114480,1768525839586,-248.22,0.0001218,2]
[402114481,1768525839595,-720.0,0.00012538,2]
[402114482,1768525839604,-5357.45630273,0.000129,2]
[402114483,1768525839613,-259.767221,0.00012956,2]
[402114484,1768525839622,-715.0,0.00012994,2]
[402114485,1768525839631,-198.527,0.00012994,2]
[402114486,1768525839641,-417.0,0.00012994,2]
[402114487,1768525839649,-167.0,0.00013232,2]
[402114488,1768525839658,-161.14886831,0.00013273,2]
[402114489,1768525839669,-500.0,0.00013273,2]
[402114490,1768525839686,-500.98976618,0.00013273,2]
[402114491,1768525839696,-288.50578496,0.00013334,2]
[402114492,1768525839705,-5357.45630271,0.00013558,2]
[402114493,1768525839714,-198.90306954,0.00013608,2]
[402114494,1768525839724,-500.0,0.00013608,2]
[402114495,1768525839735,-500.0,0.00013608,2]
[402114496,1768525839751,-500.0,0.00013608,2]
[402114497,1768525839760,-699.0,0.00013608,2]
[402114498,1768525839770,-500.0,0.00013699,2]
[402114499,1768525839779,-500.0,0.00013699,2]
[402114500,1768525839789,-600.0,0.00013745,2]
[402114501,1768525839798,-500.0,0.00013745,2]
[402114502,1768525839809,-500.0,0.00013745,2]
[402114503,1768525839818,-699.0,0.00013745,2]
[402114504,1768525839827,-864.0,0.00013792,2]
[402114505,1768525839836,-499.99999997,0.00013882,2]
[402114506,1768525839845,-500.0,0.00013882,2]
[402114507,1768525839854,-699.0,0.00013882,2]
[402114508,1768525839863,-2147.0,0.00013882,2]
[402114509,1768525839873,-629.0,0.00013882,2]
[402114510,1768525839882,-1367.0,0.00013882,2]
[402114511,1768525839892,-500.0,0.00014019,2]
[402114512,1768525839902,-699.0,0.00014019,2]
[402114513,1768525839911,-500.0,0.00014156,2]
[402114514,1768525839920,-271.43018214,0.00014156,2]
[402114515,1768525839929,-699.0,0.00014156,2]
[402114516,1768525839939,-1000.0,0.00014247,2]
[402114517,1768525839948,-500.0,0.00014247,2]
[402114518,1768525839957,-500.0,0.00014293,2]
[402114519,1768525839966,-699.0,0.00014293,2]
[402114520,1768525839975,-500.0,0.0001443,2]
[402114521,1768525839984,-699.0,0.0001443,2]
[402114522,1768525839993,-554.02588884,0.00014567,2]
[402114523,1768525840001,-699.0,0.00014567,2]
[402114524,1768525840011,-699.0,0.00014704,2]
[402114525,1768525840020,-1500.0,0.00014795,2]
[402114526,1768525840029,-699.0,0.00014841,2]
[402114527,1768525840038,-299.39272929,0.00014956,2]
[402114528,1768525840048,-699.0,0.00014978,2]
[402114529,1768525840057,-699.0,0.00015115,2]
[402114530,1768525840066,-1000.0,0.00015171,2]
[402114531,1768525840075,-699.0,0.00015252,2]
[402114532,1768525840084,-2000.0,0.00015342,2]
[402114533,1768525840093,-699.0,0.00015389,2]
[402114534,1768525840102,-180.75914753,0.000154,2]
[402114535,1768525840111,-287.35850097,0.000154,2]
[402114536,1768525840120,-699.0,0.00015526,2]
[402114537,1768525840130,-699.0,0.00015663,2]
[402114539,1768525840141,-699.0,0.000158,2]
[402114540,1768525840151,-5357.45630271,0.00015848,2]
[402114541,1768525840160,-2500.0,0.0001589,2]
[402114542,1768525840170,-699.0,0.00015937,2]
[402114543,1768525840180,-715.0,0.00015994,2]
[402114544,1768525840191,-178.0,0.00015994,2]
[402114546,1768525840200,-417.0,0.00015994,2]
[402114548,1768525840211,-699.0,0.00016074,2]
[402114549,1768525840220,-699.0,0.00016211,2]
[402114550,1768525840229,-699.0,0.00016348,2]
[402114551,1768525840239,-500.0,0.00016438,2]
[402114552,1768525840248,-699.0,0.00016485,2]
[402114554,1768525840257,-699.0,0.00016622,2]
[402114556,1768525840266,-1000.0,0.00016689,2]
[402114558,1768525840276,-244.0,0.00016689,2]
[402114559,1768525840285,-287.35850097,0.00016754,17]
[402114561,1768525840294,-714.83414865,0.00016759,2]
[402114563,1768525840303,-2147.0,0.00016882,2]
[402114565,1768525840312,-629.0,0.00016882,2]
[402114567,1768525840321,-1367.0,0.00016882,2]
[402114568,1768525840330,-339.01823757,0.00016956,2]
[402114570,1768525840339,-280.3,0.00017011,2]
[402114571,1768525840348,-295.0,0.00017228,2]
[402114572,1768525840358,-1041.66666667,0.00017244,2]
[402114573,1768525840368,-375.0,0.00017379,2]
[402114574,1768525840377,-403.0,0.00017529,2]
[402114575,1768525840387,-280.3,0.00017584,2]
[402114576,1768525840395,-3000.0,0.00018027,7]
[402114577,1768525840405,-287.35850097,0.00018109,32]
[402114578,1768525840414,-5357.45630271,0.00018138,2]
[402114579,1768525840423,-280.3,0.00018156,2]
[402114580,1768525840432,-1000.0,0.00018357,2]
[402114581,1768525840441,-492.0,0.00018357,2]
[402114582,1768525840450,-280.3,0.00018729,2]
[402114583,1768525840459,-200.0,0.00018835,7]
[402114584,1768525840468,-200.0,0.00018835,7]
[402114585,1768525840476,-200.0,0.00018835,7]
[402114586,1768525840485,-958.26030174,0.00018864,2]
[402114587,1768525840494,-303.10001603,0.000189,2]
[402114588,1768525840503,-303.10001603,0.000189,2]
[402114589,1768525840512,-378.64374586,0.00018956,2]
[402114590,1768525840521,-3544.55380863,0.00018963,2]
[402114591,1768525840530,-30000.0,0.00018964,2]
[402114592,1768525840539,-250.0,0.00018964,2]
[402114593,1768525840548,-250.0,0.00018964,2]
[402114594,1768525840557,-445.202766,0.00018964,2]
[402114595,1768525840566,-151.0,0.00018964,2]
[402114596,1768525840576,-151.0,0.00018964,2]
[402114597,1768525840585,-151.0,0.00018964,2]
[402114598,1768525840594,-151.0,0.00018964,2]
[402114599,1768525840603,-242.59349996,0.00018964,2]
[402114600,1768525840612,-162.380719,0.00018964,2]
[402114601,1768525840620,-151.0,0.00018964,2]
[402114602,1768525840631,-151.0,0.00018964,2]
[402114603,1768525840640,-151.0,0.00018964,2]
[402114604,1768525840649,-162.380719,0.00018964,2]
[402114605,1768525840659,-1000.0,0.00018964,2]
[402114606,1768525840668,-250.0,0.00018964,2]
[402114607,1768525840682,-168.3888056,0.00018964,2]
[402114608,1768525840691,-1000.0,0.00018964,2]
[402114609,1768525840700,-209.56106982,0.00018964,2]
[402114610,1768525840709,-174.61919141,0.00018964,2]
[402114611,1768525840719,-2150.738,0.00018964,2]
[402114612,1768525840734,-181.08010149,0.00018964,2]
[402114613,1768525840743,-151.0,0.00018964,2]
[402114614,1768525840752,-187.78006525,0.00018964,2]
[402114615,1768525840762,-1957.856,0.00018964,2]
[402114616,1768525840771,-151.0,0.00018964,2]
[402114617,1768525840781,-194.72792766,0.00018964,2]
[402114618,1768525840790,-1000.0,0.00018964,2]
[402114619,1768525840800,-151.0,0.00018964,2]
[402114620,1768525840810,-201.93286099,0.00018964,2]
[402114621,1768525840820,-1000.0,0.00018964,2]
[402114623,1768525840830,-151.0,0.00018964,2]
[402114624,1768525840839,-209.40437684,0.00018964,2]
[402114625,1768525840848,-1000.0,0.00018964,2]
[402114626,1768525840858,-151.0,0.00018964,2]
[402114627,1768525840867,-151.0,0.00018964,2]
[402114629,1768525840877,-217.15233878,0.00018964,2]
[402114631,1768525840886,-1000.0,0.00018964,2]
[402114632,1768525840895,-151.0,0.00018964,2]
[402114634,1768525840906,-151.0,0.00018964,2]
[402114636,1768525840916,-225.18697532,0.00018964,2]
[402114637,1768525840925,-1000.0,0.00018964,2]
[402114639,1768525840935,-151.0,0.00018964,2]
[402114641,1768525840945,-151.0,0.00018964,2]
[402114642,1768525840954,-233.51889341,0.00018964,2]
[402114644,1768525840964,-1000.0,0.00018964,2]
[402114645,1768525840973,-151.0,0.00018964,2]
[402114647,1768525840982,-151.0,0.00018964,2]
[402114649,1768525840991,-242.15909246,0.00018964,2]
[402114650,1768525841000,-1000.0,0.00018964,2]
[402114652,1768525841009,-151.0,0.00018964,2]
[402114654,1768525841018,-151.0,0.00018964,2]
[402114655,1768525841027,-251.11897888,0.00018964,2]
[402114657,1768525841036,-1000.0,0.00018964,2]
[402114659,1768525841046,-151.0,0.00018964,2]
[402114661,1768525841055,-151.0,0.00018964,2]
[402114663,1768525841065,-260.4103811,0.00018964,2]
[402114664,1768525841075,-1000.0,0.00018964,2]
[402114666,1768525841084,-151.0,0.00018964,2]
[402114668,1768525841093,-151.0,0.00018964,2]
[402114670,1768525841102,-270.0455652,0.00018964,2]
[402114671,1768525841112,-1000.0,0.00018964,2]
[402114673,1768525841121,-151.0,0.00018964,2]
[402114675,1768525841130,-280.03725112,0.00018964,2]
[402114677,1768525841143,-151.0,0.00018964,2]
[402114678,1768525841153,-1000.0,0.00018964,2]
[402114680,1768525841163,-250.0,0.00018964,2]
[402114682,1768525841172,-151.0,0.00018964,2]
[402114684,1768525841183,-290.39862941,0.00018964,2]
[402114686,1768525841192,-151.0,0.00018964,2]
[402114687,1768525841201,-1000.0,0.00018964,2]
[402114689,1768525841211,-250.0,0.00018964,2]
[402114691,1768525841220,-151.0,0.00018964,2]
[402114692,1768525841229,-301.1433787,0.00018964,2]
[402114694,1768525841238,-151.0,0.00018964,2]
[402114695,1768525841247,-250.0,0.00018964,2]
[402114696,1768525841256,-1000.0,0.00018964,2]
[402114697,1768525841265,-250.0,0.00018964,2]
[402114698,1768525841274,-151.0,0.00018964,2]
[402114699,1768525841283,-151.0,0.00018964,2]
[402114701,1768525841292,-250.0,0.00018964,2]
[402114702,1768525841301,-250.0,0.00018964,2]
[402114703,1768525841310,-151.0,0.00018964,2]
[402114704,1768525841319,-151.0,0.00018964,2]
[402114705,1768525841328,-250.0,0.00018964,2]
[402114706,1768525841337,-250.0,0.00018964,2]
[402114707,1768525841346,-198.1626915,0.00018964,2]
[402114708,1768525841355,-151.0,0.00018964,2]
[402114709,1768525841365,-250.0,0.00018964,2]
[402114710,1768525841374,-250.0,0.00018964,2]
[402114711,1768525841384,-250.0,0.00018964,2]
[402114712,1768525841393,-250.0,0.00018964,2]
[402114713,1768525841402,-1000.0,0.00018964,2]
[402114714,1768525841413,-250.0,0.00018964,2]
[402114715,1768525841422,-250.0,0.00018964,2]
[402114716,1768525841431,-1000.0,0.00018964,2]
[402114717,1768525841440,-250.0,0.00018964,2]
[402114718,1768525841449,-250.0,0.00018964,2]
[402114719,1768525841459,-1000.0,0.00018964,2]
[402114720,1768525841467,-250.0,0.00018964,2]
[402114721,1768525841476,-250.0,0.00018964,2]
[402114722,1768525841487,-250.0,0.00018964,2]
[402114723,1768525841496,-250.0,0.00018964,2]
[402114724,1768525841505,-151.0,0.00018964,2]
[402114725,1768525841514,-250.0,0.00018964,2]
[402114726,1768525841523,-151.0,0.00018964,2]
[402114727,1768525841532,-250.0,0.00018964,2]
[402114728,1768525841541,-323.29083411,0.00018964,2]
[402114729,1768525841551,-728.0,0.00018968,2]
[402114730,1768525841560,-46377.11858497,0.0001899,2]
[402114731,1768525841569,-715.0,0.00018994,2]
[402114732,1768525841578,-178.0,0.00018994,2]
[402114733,1768525841587,-417.0,0.00018994,2]
[402114734,1768525841596,-2030.296672,0.00019019,2]
[402114735,1768525841605,-2105.41764886,0.00019074,2]
[402114736,1768525841615,-303.10001603,0.00019089,2]
[402114737,1768525841625,-303.10001603,0.00019089,2]
[402114738,1768525841634,-958.26030173,0.0001909,2]
[402114739,1768525841644,-3000.0,0.00019123,7]
[402114740,1768525841653,-260.513577,0.00019123,7]
[402114741,1768525841662,-2183.31810187,0.00019129,2]
[402114742,1768525841672,-760.87,0.00019178,2]
[402114743,1768525841681,-960.86,0.00019178,2]
[402114744,1768525841691,-1014.47,0.00019178,2]
[402114745,1768525841701,-507.24,0.00019178,2]
[402114746,1768525841710,-1268.0962,0.00019178,2]
[402114747,1768525841720,-1014.47,0.00019178,2]
[402114748,1768525841729,-1014.48,0.00019178,2]
[402114749,1768525841738,-1014.48,0.00019178,2]
[402114750,1768525841747,-394.12,0.00019178,2]
[402114751,1768525841756,-1268.0962,0.00019178,2]
[402114752,1768525841765,-1000.0,0.00019178,2]
[402114753,1768525841774,-507.2385,0.00019178,2]
[402114754,1768525841783,-507.2385,0.00019178,2]
[402114755,1768525841792,-507.2385,0.00019178,2]
[402114756,1768525841801,-1353.9,0.00019178,2]
[402114757,1768525841810,-1353.9,0.00019178,2]
[402114758,1768525841819,-1353.9,0.00019178,2]
[402114759,1768525841828,-1353.9,0.00019178,2]
[402114760,1768525841837,-507.2385,0.00019178,2]
[402114761,1768525841846,-507.2385,0.00019178,2]
[402114762,1768525841855,-507.2385,0.00019178,2]
[402114763,1768525841864,-200.0,0.00019178,2]
[402114764,1768525841873,-5000.0,0.00019178,2]
[402114765,1768525841883,-5000.0,0.00019178,2]
[402114766,1768525841892,-5000.0,0.00019178,2]
[402114767,1768525841901,-5000.0,0.00019178,2]
[402114768,1768525841910,-5000.0,0.00019178,2]
[402114769,1768525841920,-5000.0,0.00019178,2]
[402114770,1768525841929,-1731.68198354,0.00019184,2]
[402114771,1768525841938,-1353.9,0.00019199,2]
[402114772,1768525841948,-159.77,0.000192,2]
[402114773,1768525841958,-167.84,0.000192,2]
[402114774,1768525841967,-192.13,0.000192,2]
[402114775,1768525841976,-2465.18652611,0.0001923,2]
[402114776,1768525841985,-728.0,0.00019257,2]
[402114777,1768525841995,-1353.9,0.00019263,2]
[402114778,1768525842004,-303.10001603,0.00019278,2]
[402114779,1768525842013,-303.10001603,0.00019278,2]
[402114780,1768525842022,-651.283942,0.0001929,7]
[402114781,1768525842031,-196.741,0.00019302,2]
[402114782,1768525842040,-280.3,0.00019302,2]
[402114783,1768525842050,-958.26030173,0.00019316,2]
[402114784,1768525842059,-287.35850097,0.00019463,48]
[402114785,1768525842068,-303.10001603,0.00019467,2]
[402114786,1768525842077,-303.10001603,0.00019467,2]
[402114787,1768525842087,-31110.0,0.00019512,2]
[402114788,1768525842096,-461.67526834,0.00019512,2]
[402114789,1768525842105,-2230.315306,0.00019512,2]
[402114790,1768525842114,-958.26030173,0.00019542,2]
[402114791,1768525842124,-160.0,0.00019577,2]
[402114792,1768525842135,-253.6238,0.00019589,3]
[402114793,1768525842147,-760.8538,0.00019589,3]
[402114794,1768525842157,-1353.9,0.00019649,2]
[402114795,1768525842166,-303.10001603,0.00019656,2]
[402114796,1768525842175,-303.10001603,0.00019656,2]
[402114797,1768525842185,-5530.8,0.000197,3]
[402114798,1768525842194,-574.59371743,0.00019722,2]
[402114799,1768525842204,-3007.35262921,0.00019722,2]
[402114800,1768525842214,-1353.9,0.00019747,2]
[402114801,1768525842224,-800.0,0.00019749,2]
[402114802,1768525842233,-800.0,0.00019753,2]
[402114803,1768525842242,-800.0,0.00019756,2]
[402114804,1768525842251,-958.26030173,0.00019768,2]
[402114809,1768525842406,-315.137391,0.00019793,7]
[402114811,1768525842418,-800.0,0.000198,2]
[402114813,1768525842427,-158.0,0.000198,4]
[402114815,1768525842436,-158.0,0.000198,4]
[402114816,1768525842445,-158.0,0.000198,5]
[402114818,1768525842454,-158.0,0.000198,5]
[402114819,1768525842464,-158.0,0.000198,7]
[402114820,1768525842473,-158.0,0.000198,7]
[402114821,1768525842483,-161.0,0.000198,5]
[402114822,1768525842492,-528.0,0.00019809,2]
[402114823,1768525842501,-1353.9,0.00019814,2]
[402114824,1768525842510,-3809.23946446,0.00019815,2]
[402114825,1768525842520,-728.0,0.00019815,2]
[402114826,1768525842529,-454.65002405,0.00019845,4]
[402114827,1768525842539,-454.65002405,0.00019845,4]
[402114828,1768525842548,-1353.9,0.00019849,2]
[402114829,1768525842557,-1353.9,0.00019849,2]
[402114831,1768525842566,-1353.9,0.00019849,2]
[402114832,1768525842576,-1353.9,0.00019849,2]
[402114834,1768525842585,-1353.9,0.00019849,2]
[402114836,1768525842594,-1353.9,0.00019849,2]
[402114837,1768525842604,-1353.9,0.00019849,2]
[402114838,1768525842614,-1353.9,0.00019849,2]
[402114839,1768525842623,-1353.9,0.00019849,2]
[402114840,1768525842633,-1353.9,0.00019849,2]
[402114841,1768525842642,-1353.9,0.00019849,2]
[402114842,1768525842651,-1353.9,0.00019849,2]
[402114843,1768525842661,-1353.9,0.00019849,2]
[402114844,1768525842671,-1353.9,0.00019849,2]
[402114845,1768525842680,-1354.09299172,0.00019849,2]
[402114846,1768525842690,-223.28838,0.00019868,7]
[402114847,1768525842700,-2100.915943,0.00019868,7]
[402114848,1768525842709,-800.0,0.00019874,2]
[402114849,1768525842718,-280.3,0.00019875,2]
[402114850,1768525842728,-579.114,0.00019882,2]
[402114851,1768525842739,-629.0,0.00019882,2]
[402114852,1768525842748,-1367.0,0.00019882,2]
[402114853,1768525842759,-3061.69218327,0.00019883,7]
[402114854,1768525842768,-5543.96754666,0.00019883,7]
[402114855,1768525842777,-6677.47714892,0.00019883,7]
[402114856,1768525842787,-5252.289859,0.00019888,7]
[402114857,1768525842796,-334.93257,0.00019888,7]
[402114858,1768525842806,-528.0,0.00019889,2]
[402114859,1768525842815,-3036.1,0.000199,2]
[402114860,1768525842824,-17112.67,0.000199,2]
[402114861,1768525842833,-778.0,0.000199,2]
[402114862,1768525842843,-800.0,0.00019901,2]
[402114863,1768525842852,-800.0,0.00019909,2]
[402114864,1768525842861,-5000.0,0.00019911,2]
[402114865,1768525842870,-475.0,0.00019911,2]
[402114866,1768525842879,-475.0,0.00019911,2]
[402114867,1768525842889,-475.0,0.00019911,2]
[402114868,1768525842898,-475.0,0.00019911,2]
[402114869,1768525842907,-475.0,0.00019911,2]
[402114870,1768525842917,-475.0,0.00019911,2]
[402114871,1768525842926,-475.0,0.00019911,2]
[402114872,1768525842935,-475.0,0.00019911,2]
[402114873,1768525842945,-475.0,0.00019911,2]
[402114874,1768525842954,-475.0,0.00019911,2]
[402114875,1768525842963,-475.0,0.00019911,2]
[402114876,1768525842972,-475.0,0.00019911,2]
[402114878,1768525842982,-475.0,0.00019911,2]
[402114880,1768525842991,-475.0,0.00019911,2]
[402114882,1768525843000,-475.0,0.00019911,2]
[402114884,1768525843010,-475.0,0.00019911,2]
[402114886,1768525843019,-475.0,0.00019911,2]
[402114887,1768525843029,-475.0,0.00019911,2]
[402114889,1768525843038,-475.0,0.00019911,2]
[402114890,1768525843048,-475.0,0.00019911,2]
[402114891,1768525843057,-475.0,0.00019911,2]
[402114892,1768525843066,-475.0,0.00019911,2]
[402114893,1768525843075,-475.0,0.00019911,2]
[402114894,1768525843084,-475.0,0.00019911,2]
[402114895,1768525843093,-475.0,0.00019911,2]
[402114896,1768525843102,-475.0,0.00019911,2]
[402114897,1768525843111,-475.0,0.00019911,2]
[402114898,1768525843120,-475.0,0.00019911,2]
[402114899,1768525843130,-475.0,0.00019911,2]
[402114900,1768525843142,-475.0,0.00019911,2]
[402114901,1768525843152,-475.0,0.00019911,2]
[402114902,1768525843161,-475.0,0.00019911,2]
[402114903,1768525843171,-475.0,0.00019911,2]
[402114904,1768525843181,-475.0,0.00019911,2]
[402114906,1768525843191,-475.0,0.00019911,2]
[402114907,1768525843200,-475.0,0.00019911,2]
[402114908,1768525843211,-475.0,0.00019911,2]
[402114909,1768525843221,-475.0,0.00019911,2]
[402114910,1768525843230,-475.0,0.00019911,2]
[402114911,1768525843239,-475.0,0.00019911,2]
[402114912,1768525843248,-475.0,0.00019911,2]
[402114913,1768525843257,-475.0,0.00019911,2]
[402114914,1768525843267,-475.0,0.00019911,2]
[402114915,1768525843276,-475.0,0.00019911,2]
[402114916,1768525843286,-475.0,0.00019911,2]
[402114917,1768525843295,-475.0,0.00019911,2]
[402114918,1768525843304,-475.0,0.00019911,2]
[402114919,1768525843313,-403.609,0.00019911,2]
[402114920,1768525843323,-2000.0,0.0001992,2]
[402114921,1768525843333,-2000.0,0.0001992,2]
[402114922,1768525843342,-2000.0,0.0001992,2]
[402114923,1768525843351,-2000.0,0.0001992,2]
[402114924,1768525843359,-2000.0,0.0001992,2]
[402114925,1768525843368,-2000.0,0.0001992,2]
[402114926,1768525843378,-2000.0,0.0001992,2]
[402114927,1768525843387,-2000.0,0.0001992,2]
[402114928,1768525843396,-2000.0,0.0001992,2]
[402114929,1768525843406,-2000.0,0.0001992,2]
[402114930,1768525843415,-2000.0,0.0001992,2]
[402114931,1768525843425,-2000.0,0.0001992,2]
[402114932,1768525843434,-2000.0,0.0001992,2]
[402114933,1768525843443,-2000.0,0.0001992,2]
[402114934,1768525843452,-2000.0,0.0001992,2]
[402114935,1768525843461,-2000.0,0.0001992,2]
[402114936,1768525843470,-1023.879,0.0001992,2]
[402114937,1768525843479,-1000.0,0.0001992,2]
[402114938,1768525843488,-1000.0,0.0001992,2]
[402114939,1768525843497,-1000.0,0.0001992,2]
[402114940,1768525843507,-1000.0,0.0001992,2]
[402114941,1768525843516,-1000.0,0.0001992,2]
[402114942,1768525843525,-837.331424,0.0001992,7]
[402114943,1768525843535,-1570.487546,0.0001992,5]
[402114944,1768525843544,-800.0,0.00019925,2]
[402114945,1768525843554,-728.0,0.00019928,2]
[402114946,1768525843564,-728.0,0.00019928,2]
[402114947,1768525843573,-24793.98460013,0.0001994,2]
[402114948,1768525843584,-74381.95380138,0.0001994,2]
[402114949,1768525843593,-1000.0,0.0001994,5]
[402114950,1768525843602,-203.98331718,0.00019948,2]
[402114951,1768525843611,-860.1972777,0.00019949,2]
[402114952,1768525843621,-35729.8801977,0.00019949,2]
[402114953,1768525843630,-109022.8716868,0.00019949,2]
[402114954,1768525843640,-3151.8613995,0.00019949,2]
[402114955,1768525843650,-336.52477842,0.00019949,2]
[402114956,1768525843659,-1346.09911369,0.00019949,2]
[402114957,1768525843668,-3028.72300581,0.00019949,2]
[402114958,1768525843678,-5384.39645478,0.00019949,2]
[402114959,1768525843688,-8413.11946059,0.00019949,2]
[402114960,1768525843698,-29754.2199855,0.00019949,2]
[402114962,1768525843708,-332.17765802,0.00019949,2]
[402114963,1768525843717,-1328.7106321,0.00019949,2]
[402114964,1768525843727,-2989.59892221,0.00019949,2]
[402114965,1768525843737,-5314.84252838,0.00019949,2]
[402114966,1768525843747,-8304.44145059,0.00019949,2]
[402114967,1768525843756,-1564.459117,0.00019949,2]
[402114968,1768525843766,-1564.459117,0.00019949,2]
[402114969,1768525843776,-1564.459117,0.00019949,2]